bitfinex-derivatives/quotes_BTCF0:USTF0_20250313
["timestamp","ask_amount","ask_price","bid_price","bid_amount"]
[1741857498178,0.120096,83265.0,83264.0,0.0576]
[1741857498480,0.18799051,83265.0,83264.0,0.05]
[1741857498679,0.30149051,83265.0,83264.0,0.1096]
[1741857498879,0.30149051,83265.0,83264.0,0.1691]
[1741857500175,0.30149051,83265.0,83264.0,0.1096]
[1741857500378,0.30149051,83265.0,83264.0,0.05]
[1741857500577,0.30149051,83265.0,83251.0,0.0592]
[1741857500578,0.31939451,83265.0,83251.0,0.0592]
[1741857500875,0.31939451,83265.0,83252.0,0.1797147]
[1741857500876,0.1201133,83253.0,83252.0,0.1797147]
[1741857501071,0.1201133,83253.0,83252.0,0.2362147]
[1741857501476,0.2338133,83253.0,83252.0,0.2362147]
[1741857502178,0.2338133,83253.0,83252.0,0.1161]
[1741857502383,0.2338133,83253.0,83252.0,0.2362148]
[1741857502883,0.2338133,83253.0,83252.0,0.1161]
[1741857503386,0.2338133,83253.0,83252.0,0.2362148]
[1741857503676,0.2338133,83253.0,83252.0,0.1161]
[1741857503884,0.2338133,83253.0,83252.0,0.0596]
[1741857504784,0.2453429,83253.0,83252.0,0.0596]
[1741857505279,0.2338133,83253.0,83252.0,0.0596]
[1741857505484,0.2338133,83253.0,83252.0,0.1797148]
[1741857506088,0.0585,83253.0,83252.0,0.2997148]
[1741857506385,0.13796,83257.0,83256.0,0.120109]
[1741857506585,0.2580685,83257.0,83256.0,0.407209]
[1741857506784,0.2580685,83257.0,83256.0,0.463909]
[1741857506978,0.3124685,83257.0,83256.0,0.463909]
[1741857507881,0.3698685,83257.0,83256.0,0.463909]
[1741857508977,0.3124685,83257.0,83256.0,0.463909]
[1741857509178,0.0544,83257.0,83256.0,0.463909]
[1741857509378,0.00018012,83261.0,83260.0,0.1201032]
[1741857510085,0.12028192,83261.0,83260.0,0.1201032]
[1741857510281,0.12028192,83261.0,83260.0,0.1765032]
[1741857512690,0.00018012,83261.0,83260.0,0.4065032]
[1741857512890,2e-08,83261.0,83260.0,0.4265032]
[1741857513385,2e-08,83261.0,83260.0,0.4065032]
[1741857514789,2e-08,83261.0,83260.0,0.4607032]
[1741857515788,0.1200955,83266.0,83265.0,0.120096]
[1741857515983,0.1200955,83266.0,83265.0,0.360096]
[1741857516382,0.1200955,83266.0,83265.0,0.474796]
[1741857521994,0.1200917,83268.0,83267.0,0.1801389]
[1741857522193,0.06184661,83270.0,83269.0,0.1200903]
[1741857522493,0.00180211,83270.0,83269.0,0.3600903]
[1741857522796,0.12189091,83270.0,83269.0,0.4768903]
[1741857525095,0.62189091,83270.0,83269.0,0.4768903]
[1741857525693,0.67789091,83270.0,83269.0,0.4768903]
[1741857525882,0.62189091,83270.0,83269.0,0.4768903]
[1741857526081,0.50180211,83270.0,83269.0,0.4768903]
[1741857526487,0.62189091,83270.0,83269.0,0.48837404]
[1741857527089,0.67789091,83270.0,83269.0,0.48837404]
[1741857528594,0.73629091,83270.0,83269.0,0.48837404]
[1741857531297,0.67789091,83270.0,83269.0,0.48837404]
[1741857533400,0.73449091,83270.0,83269.0,0.48837404]
[1741857534899,0.55780211,83270.0,83269.0,0.48837404]
[1741857535796,0.67789091,83270.0,83269.0,0.48837404]
[1741857536002,0.73719091,83270.0,83269.0,0.36828374]
[1741857536592,0.7353888,83270.0,83269.0,0.48837404]
[1741857537301,0.556,83270.0,83269.0,0.48837404]
[1741857537502,8.678e-05,83272.0,83269.0,0.50837404]
[1741857537795,0.1,83300.0,83269.0,0.50837404]
[1741857537796,0.13776,83299.0,83270.0,0.03489787]
[1741857537994,0.24756,83299.0,83298.0,0.1200485]
[1741857538189,0.367607,83299.0,83298.0,0.1200485]
[1741857538402,0.367607,83299.0,83297.0,0.0547]
[1741857538403,0.1200485,83298.0,83297.0,0.0547]
[1741857538902,0.2298485,83298.0,83297.0,0.0547]
[1741857540402,0.2298485,83298.0,83291.0,0.0579]
[1741857540611,0.1200557,83293.0,83292.0,0.0599]
[1741857541103,0.2357557,83293.0,83292.0,0.0599]
[1741857541401,0.2357557,83293.0,83289.0,0.00018012]
[1741857541608,0.12006,83290.0,83289.0,0.00018012]
[1741857542303,0.12006,83290.0,83275.0,0.00180114]
[1741857542304,0.26607687,83293.0,83275.0,0.00180114]
[1741857542505,0.1200802,83276.0,83275.0,0.00180114]
[1741857543505,0.2373802,83276.0,83275.0,0.00180114]
[1741857544901,0.1200845,83273.0,83272.0,0.42379268]
[1741857545807,0.1200917,83268.0,83267.0,0.00018012]
[1741857546010,0.2577717,83268.0,83267.0,0.00018012]
[1741857551307,0.1200917,83268.0,83267.0,0.41027322]
[1741857551609,0.2577317,83268.0,83267.0,0.17697322]
[1741857552806,0.2577317,83268.0,83267.0,0.05688012]
[1741857553007,0.2577317,83268.0,83267.0,0.00018012]
[1741857553507,0.2577317,83268.0,83267.0,0.12027322]
[1741857553815,0.2577317,83268.0,83267.0,0.00018012]
[1741857554009,0.2577317,83268.0,83267.0,0.11458012]
[1741857555105,0.0600445,83270.0,83267.0,0.11458012]
[1741857555307,0.00180184,83285.0,83283.0,0.1200701]
[1741857555511,0.31178872,83284.0,83283.0,0.1200701]
[1741857555815,0.13782012,83284.0,83281.0,0.0600358]
[1741857556006,0.1200701,83283.0,83282.0,0.1787701]
[1741857556406,0.1200701,83283.0,83282.0,0.0587]
[1741857556601,0.1752701,83283.0,83282.0,0.2355715]
[1741857556803,0.13782012,83284.0,83282.0,0.2355715]
[1741857557009,0.00018012,83284.0,83283.0,0.1200701]
[1741857557214,0.00018012,83284.0,83283.0,0.4955701]
[1741857557720,0.12024872,83284.0,83283.0,0.4955701]
[1741857557919,0.00018012,83284.0,83283.0,0.4955701]
[1741857558117,0.1376,83309.0,83299.0,0.120047]
[1741857558415,0.1200641,83290.0,83289.0,0.1800841]
[1741857558608,0.1200641,83290.0,83289.0,0.4100841]
[1741857559418,0.1200641,83290.0,83289.0,0.2900291]
[1741857559616,0.0600287,83292.0,83291.0,0.1200585]
[1741857559818,0.0600287,83292.0,83291.0,0.3700585]
[1741857560214,0.0600287,83292.0,83291.0,0.3817685]
[1741857561620,0.0600287,83292.0,83291.0,0.4418685]
[1741857562015,0.0600287,83292.0,83291.0,0.4301585]
[1741857562216,0.0600287,83292.0,83291.0,0.3101]
[1741857563015,0.0600287,83292.0,83291.0,0.4301585]
[1741857563513,0.0600287,83292.0,83291.0,0.3101]
[1741857563710,0.0600287,83292.0,83291.0,0.0601]
[1741857564120,0.1142287,83292.0,83291.0,0.0601]
[1741857564426,0.1697287,83292.0,83291.0,0.0601]
[1741857565119,0.1142287,83292.0,83291.0,0.0601]
[1741857565319,0.0600287,83292.0,83291.0,0.1801585]
[1741857566827,0.0600287,83292.0,83291.0,0.0601]
[1741857567415,0.1172287,83292.0,83291.0,0.0601]
[1741857568012,0.1172287,83292.0,83291.0,0.1801585]
[1741857568223,0.0600287,83292.0,83291.0,0.1801585]
[1741857570625,0.0600287,83292.0,83291.0,0.0601]
[1741857571724,0.1186287,83292.0,83291.0,0.0601]
[1741857573226,0.0600287,83292.0,83291.0,0.1801585]
[1741857575327,0.1800811,83296.0,83295.0,0.1200528]
[1741857576023,0.1800811,83296.0,83295.0,0.13172419]
[1741857576934,0.0600257,83296.0,83293.0,0.0600271]
[1741857577226,0.1200542,83294.0,83293.0,0.1800802]
[1741857578228,0.1200542,83294.0,83293.0,0.0600271]
[1741857578530,0.13744,83299.0,83293.0,0.26145238]
[1741857578734,0.1200542,83295.0,83294.0,0.1200497]
[1741857578927,0.1200542,83295.0,83294.0,0.1796497]
[1741857579230,0.1742542,83295.0,83294.0,0.0596]
[1741857579428,0.2325542,83295.0,83294.0,0.0596]
[1741857580317,0.1200585,83291.0,83290.0,0.0582]
[1741857581833,0.1200585,83291.0,83290.0,0.07011835]
[1741857582635,0.1200585,83291.0,83290.0,0.19017835]
[1741857582828,0.1200585,83291.0,83290.0,0.24827835]
[1741857583328,0.1200585,83291.0,83290.0,0.50827835]
[1741857583529,0.1200568,83293.0,83292.0,0.1200557]
[1741857583732,0.1776568,83293.0,83292.0,0.1200557]
[1741857584048,0.1776568,83293.0,83292.0,0.1781557]
[1741857584229,0.1776557,83293.0,83292.0,0.1781557]
[1741857584433,0.0576,83293.0,83292.0,0.1781557]
[1741857584633,0.1776557,83293.0,83292.0,0.1781557]
[1741857585335,0.2800734,83300.0,83299.0,0.120047]
[1741857585535,0.1,83300.0,83299.0,0.370047]
[1741857586641,0.2200456,83300.0,83299.0,0.370047]
[1741857587544,0.1,83300.0,83299.0,0.370047]
[1741857588236,0.1,83300.0,83299.0,0.400047]
[1741857588442,0.1,83300.0,83299.0,0.370047]
[1741857590037,0.2200456,83300.0,83299.0,0.370047]
[1741857591632,0.2200456,83300.0,83299.0,0.428047]
[1741857592244,0.2200456,83300.0,83299.0,0.488047]
[1741857593945,0.1,83300.0,83299.0,0.488047]
[1741857595745,1.4552716,83344.0,83314.0,0.1200254]
[1741857595939,1.4552716,83344.0,83314.0,0.3600254]
[1741857595940,0.0600048,83325.0,83314.0,0.3600254]
[1741857596134,0.1188,83324.0,83314.0,0.3600254]
[1741857596849,0.12182516,83315.0,83314.0,0.3600254]
[1741857597239,0.12182516,83315.0,83314.0,0.37142937]
[1741857597436,0.0600112,83317.0,83314.0,0.25140397]
[1741857597640,0.1200193,83319.0,83318.0,0.1200182]
[1741857597848,0.1200193,83319.0,83318.0,0.3700182]
[1741857598048,0.1788059,83324.0,83321.0,0.0600069]
[1741857598347,0.1200124,83323.0,83322.0,0.1200124]
[1741857598747,0.1763124,83323.0,83322.0,0.1200124]
[1741857599649,0.1200124,83323.0,83322.0,0.1200124]
[1741857600342,0.120024,83315.0,83314.0,0.07141597]
[1741857600544,0.120024,83315.0,83314.0,0.26140397]
[1741857600749,0.120024,83315.0,83314.0,0.38142937]
[1741857601141,0.237224,83315.0,83314.0,0.38142937]
[1741857602149,0.179024,83315.0,83314.0,0.38142937]
[1741857602341,0.179024,83315.0,83314.0,0.26140397]
[1741857602542,0.0597,83327.0,83314.0,0.26140397]
[1741857602738,0.1800268,83322.0,83321.0,0.1800166]
[1741857603647,0.0600079,83322.0,83321.0,0.1800166]
[1741857604244,0.0600079,83322.0,83321.0,0.4500166]
[1741857604453,0.00120001,83344.0,83321.0,0.27]
[1741857604752,0.1799833,83341.0,83340.0,0.1199875]
[1741857605054,0.1199894,83339.0,83338.0,0.0599949]
[1741857605240,0.1199995,83332.0,83331.0,0.2408962]
[1741857605448,0.1199977,83334.0,83333.0,0.1199966]
[1741857605745,0.1199977,83334.0,83333.0,0.3699966]
[1741857605942,0.1791977,83334.0,83333.0,0.3699966]
[1741857606139,0.0599934,83341.0,83333.0,0.3814738]
[1741857606338,0.2399802,83341.0,83340.0,0.119988]
[1741857606554,0.0592,83343.0,83340.0,0.259988]
[1741857606751,0.0018005,83345.0,83342.0,0.1199851]
[1741857607051,0.1217827,83345.0,83344.0,0.1199822]
[1741857607253,0.0018005,83345.0,83343.0,0.0588]
[1741857607440,0.1800822,83344.0,83343.0,0.0588]
[1741857608167,0.0581005,83345.0,83343.0,0.0588]
[1741857608168,0.0018005,83345.0,83343.0,0.4287836]
[1741857608341,0.0601,83358.0,83349.0,0.0599868]
[1741857608547,0.1162825,83357.0,83356.0,0.1199649]
[1741857608742,0.0563,83357.0,83345.0,0.00018001]
[1741857608953,0.1199793,83346.0,83345.0,0.25018001]
[1741857609346,0.1199793,83346.0,83345.0,0.37016081]
[1741857609547,0.1199793,83346.0,83345.0,0.25018001]
[1741857609742,0.2363793,83346.0,83345.0,0.00018001]
[1741857610848,0.2363793,83346.0,83332.0,0.4194]
[1741857611053,0.2363793,83346.0,83331.0,1.3944]
[1741857611054,0.1199995,83332.0,83331.0,0.21249383]
[1741857611444,0.1199995,83332.0,83331.0,0.34412587]
[1741857611643,0.1971506,83345.0,83339.0,0.0599929]
[1741857611644,0.059994,83340.0,83339.0,0.0599929]
[1741857611856,0.0615,83344.0,83343.0,0.1199836]
[1741857612543,0.0615,83344.0,83343.0,0.3799836]
[1741857612746,0.1814822,83344.0,83343.0,0.3799836]
[1741857614256,0.119988,83340.0,83339.0,0.0592]
[1741857614457,0.13137583,83340.0,83339.0,0.0592]
[1741857614656,0.119988,83340.0,83339.0,0.0592]
[1741857615261,0.119988,83340.0,83339.0,0.1791894]
[1741857615560,0.1781836,83343.0,83342.0,0.1199851]
[1741857615751,0.1199836,83343.0,83342.0,0.1199851]
[1741857615949,0.1199836,83343.0,83342.0,0.0571]
[1741857616155,0.0615,83344.0,83332.0,0.0574]
[1741857616362,0.1199966,83335.0,83334.0,0.1199966]
[1741857616660,0.1199966,83335.0,83334.0,0.1811966]
[1741857617352,0.1775966,83335.0,83334.0,0.4511966]
[1741857617658,0.1775966,83335.0,83334.0,0.5082966]
[1741857617850,0.0599964,83337.0,83334.0,0.3883]
[1741857618046,0.13708,83353.0,83347.0,0.1199779]
[1741857618253,0.0576,83349.0,83347.0,0.1199779]
[1741857618455,0.0599846,83353.0,83347.0,0.5182779]
[1741857618654,0.1199753,83349.0,83347.0,0.5182779]
[1741857618860,0.12015604,83348.0,83347.0,0.5182779]
[1741857619457,0.00017964,83348.0,83347.0,0.5182779]
[1741857621354,0.12015604,83348.0,83347.0,0.3983]
[1741857621558,0.12015604,83348.0,83347.0,0.5182779]
[1741857622263,0.17955604,83348.0,83347.0,0.5182779]
[1741857622965,0.17955604,83348.0,83347.0,0.1183]
[1741857623560,0.17955604,83348.0,83347.0,0.0612]
[1741857625562,0.17955604,83348.0,83347.0,0.1811779]
[1741857626069,0.05957964,83348.0,83347.0,0.2417779]
[1741857626260,0.05957964,83348.0,83347.0,0.4817779]
[1741857626460,0.00017964,83348.0,83347.0,0.4817779]
[1741857627461,0.06027964,83348.0,83347.0,0.4817779]
[1741857627661,0.18025604,83348.0,83347.0,0.4817779]
[1741857628559,0.18025604,83348.0,83347.0,0.1218]
[1741857628861,0.18025604,83348.0,83347.0,0.2417779]
[1741857629266,0.18025604,83348.0,83347.0,0.0612]
[1741857629470,0.24235604,83348.0,83347.0,0.0612]
[1741857630061,0.06027964,83348.0,83347.0,0.4611779]
[1741857631169,0.00017964,83348.0,83347.0,0.4611779]
[1741857633268,0.12015604,83348.0,83347.0,0.4611779]
[1741857633462,0.00017964,83348.0,83347.0,0.4611779]
[1741857635362,0.00017964,83348.0,83347.0,0.67367173]
[1741857635564,0.12015604,83348.0,83347.0,0.67367173]
[1741857636465,0.17985604,83348.0,83347.0,0.67367173]
[1741857637065,0.17985604,83348.0,83347.0,0.55369383]
[1741857637376,0.30205604,83348.0,83347.0,0.67367173]
[1741857638367,0.30205604,83348.0,83347.0,0.4611779]
[1741857638566,0.23985604,83348.0,83347.0,0.4611779]
[1741857638767,0.23985604,83348.0,83347.0,0.5200779]
[1741857638967,0.11987964,83348.0,83347.0,0.5200779]
[1741857639274,0.23985604,83348.0,83347.0,0.5200779]
[1741857639966,0.23985604,83348.0,83347.0,0.0612]
[1741857640170,0.1199793,83346.0,83345.0,0.28361383]
[1741857640473,0.2569393,83346.0,83345.0,0.28361383]
[1741857640670,0.38608736,83346.0,83345.0,0.28361383]
[1741857641265,0.1199865,83341.0,83340.0,0.28361383]
[1741857641669,0.2387865,83341.0,83340.0,0.28361383]
[1741857644673,0.3757065,83341.0,83340.0,0.28361383]
[1741857645078,0.25576,83341.0,83335.0,0.057]
[1741857645277,0.1199937,83336.0,83335.0,0.057]
[1741857645684,0.2409937,83336.0,83335.0,0.057]
[1741857646176,0.2409937,83336.0,83335.0,0.1186]
[1741857647079,0.2409937,83336.0,83335.0,0.2385951]
[1741857647672,0.13692,83342.0,83335.0,0.3586]
[1741857647980,0.2569058,83342.0,83341.0,0.1199865]
[1741857648179,0.2569058,83342.0,83341.0,0.3499865]
[1741857648583,0.2569058,83342.0,83341.0,0.1199865]
[1741857648775,0.1799834,83340.0,83339.0,0.1199883]
[1741857648975,0.1799834,83340.0,83339.0,0.2392883]
[1741857649377,0.2964834,83340.0,83339.0,0.2392883]
[1741857649970,0.176494,83340.0,83339.0,0.2392883]
[1741857650175,0.177388,83340.0,83339.0,0.2392883]
[1741857650575,0.13709964,83348.0,83347.0,0.1199779]
[1741857650776,0.13709964,83348.0,83347.0,0.3899779]
[1741857651082,0.25707604,83348.0,83347.0,0.5694779]
[1741857651475,0.31447604,83348.0,83347.0,0.5694779]
[1741857651871,0.31447604,83348.0,83347.0,0.4495]
[1741857652083,0.37667604,83348.0,83347.0,0.0599]
[1741857652581,0.43897604,83348.0,83347.0,0.0599]
[1741857653084,0.31899964,83348.0,83339.0,0.0615]
[1741857653290,0.1199894,83339.0,83338.0,0.0619]
[1741857653779,0.1810894,83339.0,83338.0,0.1818908]
[1741857654379,0.2431894,83339.0,83338.0,0.2413908]
[1741857654578,0.2431894,83339.0,83338.0,0.1214]
[1741857654788,0.2431894,83339.0,83338.0,0.0595]
[1741857655979,0.13633024,83350.0,83333.0,0.0595]
[1741857656178,0.28925566,83374.0,83333.0,0.0595]
[1741857656179,0.06005,83387.0,83338.0,0.4418148]
[1741857656387,0.97349217,83446.0,83390.0,0.13633024]
[1741857656588,0.01137343,83445.0,83444.0,0.1198384]
[1741857656789,0.23405772,83446.0,83445.0,0.119837]
[1741857656989,0.15963838,83446.0,83445.0,0.379837]
[1741857657195,0.45699891,83460.0,83459.0,0.1198169]
[1741857657196,0.45767891,83460.0,83459.0,0.1198169]
[1741857657395,0.4570789,83460.0,83459.0,0.3898169]
[1741857657699,0.4563989,83460.0,83459.0,0.3898169]
[1741857658595,0.01197604,83485.0,83459.0,0.27]
[1741857658788,0.1167,83477.0,83460.0,0.13633024]
[1741857658982,0.1198019,83470.0,83464.0,0.00017976]
[1741857659187,0.0576,83469.0,83468.0,0.1198028]
[1741857660290,0.1774025,83469.0,83468.0,0.1198028]
[1741857660593,0.1774025,83469.0,83459.0,0.2029443]
[1741857660594,0.0576,83469.0,83431.0,0.42379268]
[1741857660786,0.0576,83469.0,83414.0,0.4194]
[1741857660787,0.1198226,83455.0,83454.0,0.20900587]
[1741857661287,0.0599182,83446.0,83415.0,0.05994]
[1741857661490,0.0599182,83446.0,83401.0,0.1368]
[1741857661491,0.8917,83445.0,83400.0,0.2029443]
[1741857661795,0.8917,83445.0,83422.0,0.00017976]
[1741857661796,0.1198686,83423.0,83422.0,0.00017976]
[1741857661992,0.2566686,83423.0,83422.0,0.00017976]
[1741857662289,0.1198714,83421.0,83420.0,0.119872]
[1741857662688,0.1198762,83418.0,83417.0,0.1198764]
[1741857662893,0.1198786,83416.0,83415.0,0.004]
[1741857663080,0.1198901,83408.0,83407.0,0.1790913]
[1741857663286,0.0599433,83411.0,83407.0,0.00017976]
[1741857663491,0.1198901,83408.0,83407.0,0.00017976]
[1741857663993,0.1198901,83408.0,83407.0,0.12007136]
[1741857664194,0.2566901,83408.0,83407.0,0.12007136]
[1741857664386,0.2566901,83408.0,83407.0,0.00017976]
[1741857664893,0.1199074,83396.0,83395.0,0.2160088]
[1741857665098,0.1199074,83396.0,83395.0,0.0592]
[1741857665286,0.119916,83390.0,83389.0,0.0599585]
[1741857665491,0.0613,83397.0,83386.0,0.0984]
[1741857665797,0.1812059,83397.0,83396.0,0.1199074]
[1741857665998,0.0613,83397.0,83396.0,0.1199074]
[1741857666294,0.0613,83397.0,83394.0,0.0599546]
[1741857666295,0.0613,83397.0,83387.0,0.0599596]
[1741857666497,0.13676,83396.0,83387.0,0.1199198]
[1741857666685,0.1199218,83386.0,83383.0,0.00197877]
[1741857668495,0.0599585,83390.0,83383.0,0.00197877]
[1741857668694,0.1199218,83386.0,83383.0,0.12190367]
[1741857668995,0.0574,83389.0,83383.0,0.00197877]
[1741857669198,0.1199218,83386.0,83383.0,0.00197877]
[1741857669587,0.1199218,83386.0,83385.0,0.00109182]
[1741857669787,0.00017987,83400.0,83395.0,0.0599538]
[1741857669987,0.00060001,83408.0,83407.0,0.1198916]
[1741857670192,0.0574,83426.0,83392.0,0.01186089]
[1741857670193,0.0574,83426.0,83400.0,0.13676]
[1741857670398,0.0574,83426.0,83418.0,0.0599376]
[1741857670599,0.0574,83426.0,83414.0,0.0599402]
[1741857670797,0.1198784,83417.0,83416.0,0.1198785]
[1741857671001,0.1198801,83415.0,83412.0,0.00017987]
[1741857671191,0.1198829,83413.0,83412.0,0.00017987]
[1741857671498,0.1199033,83399.0,83387.0,0.0599595]
[1741857671700,0.0599505,83401.0,83400.0,0.1199016]
[1741857672290,0.0599,83403.0,83400.0,0.1199016]
[1741857672492,0.0599,83403.0,83402.0,0.1198988]
[1741857673702,0.0619,83403.0,83402.0,0.1198988]
[1741857673900,0.0619,83403.0,83393.0,0.00017987]
[1741857674098,0.1199103,83394.0,83393.0,0.00017987]
[1741857675898,0.13676,83394.0,83385.0,9.182e-05]
[1741857676104,0.1199218,83386.0,83385.0,9.182e-05]
[1741857678701,0.1229218,83386.0,83385.0,9.182e-05]
[1741857679496,0.1199218,83386.0,83385.0,9.182e-05]
[1741857679704,0.1229218,83386.0,83385.0,9.182e-05]
[1741857681405,0.1229218,83386.0,83385.0,0.12001502]
[1741857682007,0.1827218,83386.0,83385.0,0.12001502]
[1741857684119,0.1827218,83386.0,83385.0,9.182e-05]
[1741857684306,0.0628,83386.0,83385.0,0.12001502]
[1741857684813,0.1215,83386.0,83385.0,0.12001502]
[1741857685313,0.2394218,83386.0,83385.0,9.182e-05]
[1741857685821,0.2394218,83386.0,83356.0,1.4531823]
[1741857685822,0.1195,83386.0,83353.0,0.059984]
[1741857686115,0.13676,83385.0,83370.0,0.2029443]
[1741857686317,0.1195,83386.0,83383.0,0.1199256]
[1741857686518,0.06,83384.0,83383.0,0.1199256]
[1741857687920,0.00017987,83392.0,83383.0,0.07]
[1741857688111,0.6941,83417.0,83383.0,0.07]
[1741857688112,0.0595,83424.0,83384.0,0.20556]
[1741857688317,0.0595,83424.0,83423.0,0.1198686]
[1741857688709,0.0595,83424.0,83422.0,0.1198698]
[1741857688917,1e-08,83425.0,83424.0,0.1198671]
[1741857689316,0.14194503,83427.0,83426.0,0.1198643]
[1741857689520,0.15326801,83427.0,83426.0,0.1198643]
[1741857690023,0.27313081,83427.0,83426.0,0.1198643]
[1741857690821,0.15326801,83427.0,83426.0,0.1198643]
[1741857691428,0.15326801,83427.0,83426.0,0.1898643]
[1741857691923,0.00017987,83433.0,83432.0,0.1198556]
[1741857692323,0.12003407,83433.0,83432.0,0.1198556]
[1741857693124,0.17893407,83433.0,83432.0,0.1198556]
[1741857693320,0.05907987,83433.0,83432.0,0.1198556]
[1741857693728,0.17893407,83433.0,83432.0,0.1198556]
[1741857693933,0.05907987,83433.0,83429.0,0.0599299]
[1741857694228,0.1198585,83431.0,83430.0,0.1198556]
[1741857694625,0.1787585,83431.0,83430.0,0.1198556]
[1741857695035,0.1900722,83431.0,83430.0,0.1198556]
[1741857695620,0.0702137,83431.0,83424.0,0.1215]
[1741857695927,0.059932,83427.0,83420.0,0.0599357]
[1741857696131,0.1198714,83421.0,83420.0,0.1798047]
[1741857696730,0.1198714,83421.0,83420.0,0.0599357]
[1741857697134,0.1311851,83421.0,83420.0,0.0599357]
[1741857697328,0.1321851,83421.0,83420.0,0.0599357]
[1741857698932,0.1331851,83421.0,83420.0,0.0599357]
[1741857699432,0.1198772,83417.0,83416.0,0.00017987]
[1741857700031,0.1198916,83408.0,83407.0,0.1198913]
[1741857700530,0.059945,83409.0,83406.0,0.00179839]
[1741857700726,0.1783916,83407.0,83406.0,0.00179839]
[1741857700928,0.1897053,83407.0,83406.0,0.00179839]
[1741857701431,0.1199031,83400.0,83399.0,0.1199031]
[1741857701739,0.1199031,83399.0,83398.0,0.00017987]
[1741857701927,0.2426031,83399.0,83398.0,0.00017987]
[1741857702130,0.25412013,83399.0,83398.0,0.12008437]
[1741857702330,0.39076013,83399.0,83398.0,0.00017987]
[1741857702824,0.1199218,83386.0,83385.0,0.12002467]
[1741857703226,0.13143883,83386.0,83385.0,0.12002467]
[1741857704531,0.13143883,83386.0,83385.0,0.00010257]
[1741857704933,0.13143883,83386.0,83385.0,0.00210257]
[1741857705135,0.13143883,83386.0,83385.0,0.12202577]
[1741857706436,0.6941,83425.0,83385.0,0.27210257]
[1741857706640,0.00068,83452.0,83415.0,0.4058886]
[1741857706829,0.0613,83463.0,83440.0,0.4058886]
[1741857707142,0.0613,83463.0,83462.0,0.1198126]
[1741857707736,0.1811111,83463.0,83462.0,0.1198126]
[1741857707927,0.0613,83463.0,83462.0,0.1198126]
[1741857708130,0.0613,83463.0,83458.0,0.0599086]
[1741857708333,0.1198169,83459.0,83458.0,0.0599086]
[1741857708735,0.1198157,83460.0,83459.0,0.119814]
[1741857709440,0.1787157,83460.0,83459.0,0.119814]
[1741857710542,0.17889464,83460.0,83459.0,0.119814]
[1741857711139,0.1198226,83455.0,83454.0,0.00017975]
[1741857711838,0.1198226,83455.0,83454.0,0.12000375]
[1741857712534,0.1198226,83455.0,83454.0,0.00017975]
[1741857715347,0.1198226,83455.0,83454.0,0.12000375]
[1741857715533,0.0599084,83459.0,83454.0,0.12000375]
[1741857715739,0.1176,83458.0,83457.0,0.1198197]
[1741857716344,0.00017894,83460.0,83459.0,0.1198169]
[1741857716532,4e-08,83460.0,83459.0,0.3498169]
[1741857716738,4e-08,83460.0,83459.0,0.5198169]
[1741857717941,0.058,83469.0,83459.0,0.55]
[1741857718242,0.14588,83490.0,83470.0,0.1198011]
[1741857718437,0.0595,83482.0,83470.0,0.3498011]
[1741857719245,1.39232,83508.0,83470.0,0.7465039]
[1741857719246,5e-08,83471.0,83470.0,0.7465039]
[1741857719446,5e-08,83471.0,83470.0,0.5865039]
[1741857719649,5e-08,83471.0,83470.0,0.6067011]
[1741857720142,0.0628,83498.0,83480.0,0.5989319]
[1741857720333,0.0628,83498.0,83488.0,0.2029443]
[1741857720536,0.1197839,83483.0,83482.0,0.1796664]
[1741857720845,0.0598827,83495.0,83494.0,0.1197638]
[1741857721231,0.0598827,83495.0,83470.0,0.4194]
[1741857721430,0.1197781,83487.0,83486.0,0.00017975]
[1741857721849,0.6223255,83523.0,83486.0,0.00017975]
[1741857722148,0.1197709,83492.0,83491.0,0.0598831]
[1741857722343,0.1197767,83487.0,83486.0,0.00017975]
[1741857722641,0.14548,83490.0,83470.0,0.4194]
[1741857722840,0.0625,83486.0,83450.0,0.2029443]
[1741857723042,0.119824,83454.0,83453.0,0.3516203]
[1741857723232,0.119824,83454.0,83453.0,0.1216229]
[1741857723833,0.119824,83454.0,83453.0,0.0017974]
[1741857724142,0.119784,83454.0,83453.0,0.0017974]
[1741857724942,0.1168312,83449.0,83448.0,0.35179061]
[1741857725147,0.1168312,83449.0,83448.0,0.3065293]
[1741857725538,0.128262,83449.0,83445.0,0.00017975]
[1741857725847,0.2645,83448.0,83425.0,0.5404]
[1741857726041,0.1797879,83433.0,83432.0,0.1797754]
[1741857726246,0.1797879,83433.0,83432.0,0.0599262]
[1741857726840,0.30388616,83433.0,83432.0,0.0599262]
[1741857727039,0.30388616,83433.0,83425.0,0.5404]
[1741857727040,0.12409826,83433.0,83425.0,0.542]
[1741857727246,0.1797956,83428.0,83427.0,0.1198625]
[1741857727445,0.0599313,83428.0,83427.0,0.1198625]
[1741857727746,0.0599314,83427.0,83426.0,0.12945585]
[1741857727940,0.0599314,83427.0,83426.0,0.3598643]
[1741857728140,0.1839314,83427.0,83426.0,0.1198643]
[1741857728343,0.1799314,83427.0,83426.0,0.1198643]
[1741857729039,0.1799314,83427.0,83426.0,0.1208643]
[1741857729241,0.1799314,83427.0,83426.0,0.001]
[1741857729745,0.18002108,83427.0,83426.0,0.001]
[1741857729938,0.1799314,83427.0,83412.0,0.01118781]
[1741857730143,0.1198829,83413.0,83412.0,0.12927381]
[1741857730353,0.1798386,83408.0,83407.0,0.1198853]
[1741857730647,0.2397844,83408.0,83407.0,0.1198853]
[1741857731548,0.0606,83412.0,83411.0,0.1198858]
[1741857731753,0.0606,83412.0,83411.0,0.3898858]
[1741857732048,0.0606,83412.0,83411.0,0.5115858]
[1741857733252,0.1804844,83412.0,83411.0,0.5115858]
[1741857733549,0.2404844,83412.0,83411.0,0.5115858]
[1741857733747,0.2404844,83412.0,83411.0,0.3898858]
[1741857734051,0.1206,83412.0,83411.0,0.3998858]
[1741857734242,0.25486766,83412.0,83411.0,0.3998858]
[1741857734441,0.13498326,83412.0,83411.0,0.3998858]
[1741857734939,0.1236,83412.0,83411.0,0.3998858]
[1741857735142,0.1236,83412.0,83411.0,0.4626858]
[1741857735349,0.1236,83412.0,83411.0,0.5201858]
[1741857735944,0.2434844,83412.0,83411.0,0.5201858]
[1741857736150,0.1236,83412.0,83406.0,0.059946]
[1741857736350,0.1236,83412.0,83406.0,0.299946]
[1741857736548,0.1198916,83407.0,83406.0,0.4797759]
[1741857737543,0.0599449,83409.0,83408.0,0.1198901]
[1741857738038,0.0626,83412.0,83410.0,0.1198858]
[1741857738238,0.1824852,83412.0,83411.0,0.1198858]
[1741857738445,0.0606,83412.0,83411.0,0.3798858]
[1741857739150,0.1804844,83412.0,83411.0,0.3798858]
[1741857739459,0.0636,83412.0,83411.0,0.3798858]
[1741857739652,0.1834844,83412.0,83411.0,0.3798858]
[1741857739861,0.0636,83412.0,83411.0,0.3798858]